bitfinex-derivatives/quotes_BTCF0:USTF0_20250918
["timestamp","ask_amount","ask_price","bid_price","bid_amount"]
[1758216232402,1.11581595,117780.0,117770.0,0.31629595]
[1758216233007,1.11581595,117780.0,117770.0,0.03598]
[1758216233605,0.014,117770.0,117760.0,0.38457308]
[1758216233801,0.31653595,117770.0,117760.0,0.38447308]
[1758216234201,1.11325595,117770.0,117760.0,0.38447308]
[1758216234909,1.11325595,117770.0,117760.0,0.38547308]
[1758216235807,1.11325595,117770.0,117760.0,0.02418]
[1758216236104,1.6435719,117770.0,117760.0,0.001]
[1758216236304,1.6435719,117770.0,117760.0,0.002]
[1758216236505,1.36325595,117770.0,117760.0,0.002]
[1758216237707,1.36325595,117770.0,117760.0,0.001]
[1758216237910,0.03586,117760.0,117750.0,0.02243]
[1758216238105,0.31617595,117760.0,117750.0,0.02233]
[1758216238304,0.31617595,117760.0,117750.0,0.31567595]
[1758216238504,1.11217595,117760.0,117750.0,0.31567595]
[1758216238805,1.09842595,117760.0,117750.0,0.31567595]
[1758216239009,1.09842595,117760.0,117750.0,0.31667595]
[1758216239208,1.09842595,117760.0,117750.0,0.03636]
[1758216239412,1.09842595,117760.0,117750.0,0.31667595]
[1758216240011,1.09842595,117760.0,117750.0,0.31767595]
[1758216240409,1.09842595,117760.0,117750.0,0.03736]
[1758216240802,1.11104595,117760.0,117750.0,0.31767595]
[1758216241008,1.11104595,117760.0,117750.0,0.02433]
[1758216241510,1.11104595,117760.0,117750.0,0.30464595]
[1758216242405,0.81767,117760.0,117750.0,0.31733595]
[1758216242612,1.09754595,117760.0,117750.0,0.31733595]
[1758216243307,1.11016595,117760.0,117750.0,0.02433]
[1758216243507,0.31504595,117760.0,117750.0,0.30464595]
[1758216243810,1.11016595,117760.0,117750.0,0.30464595]
[1758216244208,1.11016595,117760.0,117750.0,0.02433]
[1758216244414,1.11016595,117760.0,117750.0,0.0021]
[1758216244415,1.3904819,117760.0,117750.0,0.0021]
[1758216244810,1.6404819,117760.0,117750.0,0.0021]
[1758216245714,1.6404819,117760.0,117750.0,0.0011]
[1758216246114,1.6404819,117760.0,117750.0,0.0001]
[1758216246514,1.92079785,117760.0,117750.0,0.0001]
[1758216246714,1.6414819,117760.0,117750.0,0.0001]
[1758216247310,0.8463619,117760.0,117750.0,0.0001]
[1758216247613,1.6427219,117760.0,117750.0,0.0001]
[1758216248216,1.6417219,117760.0,117750.0,0.0001]
[1758216248417,1.6427219,117760.0,117750.0,0.0001]
[1758216249616,0.8473619,117760.0,117750.0,0.0001]
[1758216249813,1.6427619,117760.0,117750.0,0.0001]
[1758216250317,0.8473619,117760.0,117750.0,0.0001]
[1758216250516,1.6422419,117760.0,117750.0,0.0001]
[1758216250817,0.8473619,117760.0,117750.0,0.0001]
[1758216251019,1.6421219,117760.0,117750.0,0.0001]
[1758216252420,1.6636201,117760.0,117750.0,0.0001]
[1758216252616,1.6421219,117760.0,117750.0,0.0001]
[1758216253416,1.6414019,117760.0,117750.0,0.0001]
[1758216254319,1.08077,117760.0,117750.0,0.0001]
[1758216254521,1.6411219,117760.0,117750.0,0.02336]
[1758216254919,1.6411219,117760.0,117750.0,0.0001]
[1758216256817,1.6626223,117760.0,117750.0,0.0001]
[1758216257520,1.67143785,117760.0,117750.0,0.0001]
[1758216257725,0.03538,117720.0,117710.0,0.07609717]
[1758216257925,0.02276,117690.0,117680.0,0.03599]
[1758216258219,0.02276,117690.0,117680.0,0.15437681]
[1758216258425,0.30307595,117690.0,117680.0,0.15437681]
[1758216258626,0.30307595,117690.0,117680.0,0.43469276]
[1758216258822,0.02276,117690.0,117680.0,0.43469276]
[1758216260021,0.02376,117690.0,117680.0,0.44569276]
[1758216260326,0.02376,117690.0,117680.0,0.51258665]
[1758216260527,0.02276,117690.0,117680.0,0.50558665]
[1758216261322,0.02276,117690.0,117680.0,0.7859026]
[1758216261726,0.02276,117690.0,117680.0,0.49719984]
[1758216262123,0.02376,117690.0,117680.0,0.21988389]
[1758216262323,0.02376,117690.0,117680.0,0.50019984]
[1758216263221,0.02376,117690.0,117680.0,0.50878157]
[1758216264522,0.02376,117690.0,117680.0,0.22846562]
[1758216264823,0.02276,117690.0,117680.0,0.50678157]
[1758216265224,0.30307595,117690.0,117680.0,0.50678157]
[1758216265424,0.02276,117690.0,117680.0,0.50678157]
[1758216266129,0.02276,117690.0,117680.0,0.50278157]
[1758216266330,0.02276,117690.0,117680.0,0.50478157]
[1758216266532,0.02276,117690.0,117680.0,0.31930595]
[1758216266925,0.30307595,117690.0,117680.0,0.31930595]
[1758216267528,0.02276,117690.0,117680.0,0.31930595]
[1758216267740,0.30307595,117690.0,117680.0,0.31930595]
[1758216268428,0.30307595,117690.0,117680.0,0.04747098]
[1758216268631,0.30307595,117690.0,117680.0,0.31930595]
[1758216268833,0.02276,117690.0,117680.0,0.31930595]
[1758216269132,0.02276,117690.0,117680.0,0.03899]
[1758216269333,0.02276,117690.0,117680.0,0.31930595]
[1758216269632,0.02276,117690.0,117680.0,0.31830595]
[1758216270134,0.30307595,117690.0,117680.0,0.03799]
[1758216270329,0.02276,117690.0,117680.0,0.31830595]
[1758216270530,0.30307595,117690.0,117680.0,0.31830595]
[1758216270829,0.30307595,117690.0,117680.0,0.32689566]
[1758216274239,0.30307595,117690.0,117680.0,0.04657971]
[1758216274432,0.30307595,117690.0,117680.0,0.32689566]
[1758216275836,0.02276,117690.0,117680.0,0.32689566]
[1758216276031,0.78077,117700.0,117690.0,0.03438]
[1758216276232,0.37017878,117720.0,117710.0,0.01332]
[1758216276233,0.79568,117720.0,117710.0,0.01332]
[1758216276535,0.81821,117720.0,117710.0,0.31469595]
[1758216276738,1.09852595,117720.0,117710.0,0.31479595]
[1758216277040,0.30288595,117720.0,117710.0,0.31479595]
[1758216277239,0.02257,117720.0,117710.0,0.31479595]
[1758216277738,0.44650618,117720.0,117710.0,0.45541618]
[1758216278943,0.44850618,117720.0,117710.0,0.45541618]
[1758216279144,0.02761,117720.0,117710.0,0.45541618]
[1758216279745,0.44854618,117720.0,117710.0,0.45541618]
[1758216280646,0.86948236,117720.0,117710.0,0.45541618]
[1758216282145,0.02761,117720.0,117710.0,0.45541618]
[1758216282340,0.86948236,117720.0,117710.0,0.45541618]
[1758216282746,0.89093444,117720.0,117710.0,0.45541618]
[1758216283845,0.89093444,117720.0,117710.0,0.03448]
[1758216284046,0.89093444,117720.0,117710.0,0.45541618]
[1758216286643,1.57549062,117720.0,117710.0,0.0001]
[1758216287236,1.62117459,117720.0,117710.0,0.0001]
[1758216287857,0.01362,117710.0,117700.0,0.0001]
[1758216288041,0.03619,117700.0,117690.0,0.02116]
[1758216288347,0.89951444,117700.0,117690.0,0.02106]
[1758216288747,1.69283444,117700.0,117690.0,0.02106]
[1758216289448,0.89951444,117700.0,117690.0,0.02106]
[1758216289653,1.69263444,117700.0,117690.0,0.44199618]
[1758216290146,0.05764208,117700.0,117690.0,0.02106]
[1758216290450,1.69251444,117700.0,117690.0,0.02106]
[1758216290644,1.69351444,117700.0,117690.0,0.02106]
[1758216292057,0.03619,117690.0,117680.0,0.0212]
[1758216292247,0.47857826,117690.0,117680.0,0.0211]
[1758216292649,1.27121826,117690.0,117680.0,0.0211]
[1758216292951,1.24976618,117690.0,117680.0,0.45535618]
[1758216293550,1.24976618,117690.0,117680.0,0.03642]
[1758216293742,1.24976618,117690.0,117680.0,0.45735618]
[1758216294147,0.45712618,117690.0,117680.0,0.45735618]
[1758216294354,1.24940618,117690.0,117680.0,0.45735618]
[1758216294856,1.23578618,117690.0,117680.0,0.45735618]
[1758216296454,0.44350618,117690.0,117680.0,0.45735618]
[1758216296649,0.02257,117690.0,117680.0,0.45735618]
[1758216296957,0.99466618,117690.0,117680.0,0.45735618]
[1758216298156,0.81493,117700.0,117690.0,0.03555]
[1758216298353,1.23586618,117700.0,117690.0,0.03555]
[1758216298556,1.25735983,117700.0,117690.0,0.45648618]
[1758216299357,1.67929601,117700.0,117690.0,0.45648618]
[1758216299560,0.04510365,117700.0,117690.0,0.45648618]
[1758216299755,0.46603983,117700.0,117690.0,0.45648618]
[1758216300059,1.25835983,117700.0,117690.0,0.45648618]
[1758216300259,0.83742365,117700.0,117690.0,0.45648618]
[1758216300462,1.25835983,117700.0,117690.0,0.45648618]
[1758216300663,1.25835983,117700.0,117690.0,0.03555]
[1758216300863,1.25836048,117700.0,117690.0,0.45648618]
[1758216301367,1.69300666,117700.0,117690.0,0.44319618]
[1758216301762,1.69300666,117700.0,117690.0,0.02226]
[1758216301965,0.03673,117690.0,117680.0,0.45545618]
[1758216302169,0.47916048,117690.0,117680.0,0.45535618]
[1758216303069,0.47916048,117690.0,117680.0,0.45635618]
[1758216303468,0.47916048,117690.0,117680.0,0.45735618]
[1758216304575,0.47916048,117690.0,117680.0,0.03642]
[1758216304875,0.47916048,117690.0,117680.0,0.45735618]
[1758216305075,0.46545048,117690.0,117680.0,0.45735618]
[1758216305376,0.46545048,117690.0,117680.0,0.03642]
[1758216305566,0.46545048,117690.0,117680.0,0.45735618]
[1758216305973,0.46545048,117690.0,117680.0,0.03642]
[1758216306173,0.44395618,117690.0,117680.0,0.45735618]
[1758216307274,0.02302,117690.0,117680.0,0.45735618]
[1758216307471,0.44395618,117690.0,117680.0,0.45745618]
[1758216307867,0.44395618,117690.0,117680.0,0.87839236]
[1758216308674,0.44395618,117690.0,117680.0,0.45745618]
[1758216309376,0.44395618,117690.0,117680.0,0.03652]
[1758216309778,0.44395618,117690.0,117680.0,0.45745618]
[1758216309980,0.44395618,117690.0,117680.0,0.03652]
[1758216310178,1.12860236,117690.0,117680.0,0.0232]
[1758216310378,1.15010626,117690.0,117680.0,0.00214]
[1758216310670,0.01371,117680.0,117670.0,0.0001]
[1758216310872,1.67088236,117680.0,117670.0,0.02106]
[1758216311267,0.87860236,117680.0,117670.0,0.02106]
[1758216311670,1.67088236,117680.0,117670.0,0.02106]
[1758216313476,1.67088236,117680.0,117670.0,0.02206]
[1758216316272,1.67088236,117680.0,117670.0,0.001]
[1758216316480,2.34181854,117680.0,117670.0,0.001]
[1758216316679,1.07901,117680.0,117670.0,0.001]
[1758216316981,1.92088236,117680.0,117670.0,0.001]
[1758216317578,1.07901,117680.0,117670.0,0.001]
[1758216317779,1.92088236,117680.0,117670.0,0.001]
[1758216317979,2.36333078,117680.0,117670.0,0.001]
[1758216318173,2.36337078,117680.0,117670.0,0.001]
[1758216318976,2.36341078,117680.0,117670.0,0.001]
[1758216319682,1.57109078,117680.0,117670.0,0.001]
[1758216319882,2.36341078,117680.0,117670.0,0.001]
[1758216320181,1.57109078,117680.0,117670.0,0.001]
[1758216320384,2.36341078,117680.0,117670.0,0.001]
[1758216322184,1.57109078,117680.0,117670.0,0.001]
[1758216322385,2.36341078,117680.0,117670.0,0.001]
[1758216324388,1.57109078,117680.0,117670.0,0.001]
[1758216324585,2.36341078,117680.0,117670.0,0.001]
[1758216324988,1.57109078,117680.0,117670.0,0.001]
[1758216325289,2.36341078,117680.0,117670.0,0.001]
[1758216325891,1.57109078,117680.0,117670.0,0.001]
[1758216326189,2.36341078,117680.0,117670.0,0.001]
[1758216327386,1.57109078,117680.0,117670.0,0.001]
[1758216327586,2.36341078,117680.0,117670.0,0.001]
[1758216327988,1.9424746,117680.0,117670.0,0.001]
[1758216328189,2.36341078,117680.0,117670.0,0.001]
[1758216328381,1.10060224,117680.0,117670.0,0.001]
[1758216328589,2.36341078,117680.0,117670.0,0.001]
[1758216329392,1.57109078,117680.0,117670.0,0.001]
[1758216329593,1.57109078,117680.0,117670.0,0.0011]
[1758216329594,1.1501546,117680.0,117670.0,0.0011]
[1758216329793,1.9424346,117680.0,117670.0,0.0011]
[1758216329989,2.36337078,117680.0,117670.0,0.0011]
[1758216331191,1.57109078,117680.0,117670.0,0.0011]
[1758216331384,2.36337078,117680.0,117670.0,0.0011]
[1758216332300,1.10056224,117680.0,117670.0,0.0011]
[1758216332487,2.36337078,117680.0,117670.0,0.0011]
[1758216333297,1.57109078,117680.0,117670.0,0.0011]
[1758216333593,2.36337078,117680.0,117670.0,0.0011]
[1758216333894,1.57109078,117680.0,117670.0,0.0011]
[1758216334095,2.36337078,117680.0,117670.0,0.0011]
[1758216334497,1.57109078,117680.0,117670.0,0.0011]
[1758216334897,2.36333078,117680.0,117670.0,0.0011]
[1758216335597,1.57109078,117680.0,117670.0,0.0011]
[1758216335897,2.36333078,117680.0,117670.0,0.0011]
[1758216336291,0.04457224,117680.0,117670.0,0.28751]
[1758216336491,0.04457224,117680.0,117670.0,0.70844618]
[1758216336691,0.30097224,117680.0,117670.0,0.70844618]
[1758216336891,1.25774842,117680.0,117670.0,0.70844618]
[1758216337091,0.8153,117680.0,117670.0,0.70844618]
[1758216337291,1.23623618,117680.0,117670.0,0.28751]
[1758216337498,1.23623618,117680.0,117670.0,0.70844618]
[1758216337801,1.09614143,117680.0,117670.0,0.28751]
[1758216338800,1.38969286,117680.0,117670.0,0.28751]
[1758216339499,1.38965286,117680.0,117670.0,0.02396]
[1758216343691,0.82797,117680.0,117670.0,0.02396]
[1758216343995,1.38965286,117680.0,117670.0,0.02396]
[1758216347300,1.38965286,117680.0,117670.0,0.03751]
[1758216348509,0.81514,117680.0,117670.0,0.03751]
[1758216348809,1.09598143,117680.0,117670.0,0.31835143]
[1758216348998,0.81514,117680.0,117670.0,0.31835143]
[1758216349200,1.09598143,117680.0,117670.0,0.31835143]
[1758216349403,0.30390143,117680.0,117670.0,0.03751]
[1758216349601,1.09594143,117680.0,117670.0,0.31835143]
[1758216350107,0.8151,117680.0,117670.0,0.31835143]
[1758216350298,1.37678286,117680.0,117670.0,0.02396]
[1758216350503,1.38949286,117680.0,117670.0,0.02396]
[1758216350696,1.92033429,117680.0,117670.0,0.0011]
[1758216350903,1.94175123,117680.0,117670.0,0.0011]
[1758216352501,1.94875123,117680.0,117670.0,0.0011]
[1758216357810,1.94863123,117680.0,117670.0,0.0011]
[1758216358011,1.15671123,117680.0,117670.0,0.0011]
[1758216358209,1.94863123,117680.0,117670.0,0.0011]
[1758216358513,1.15671123,117680.0,117670.0,0.0011]
[1758216358706,1.94863123,117680.0,117670.0,0.0011]
[1758216359213,1.15671123,117680.0,117670.0,0.0011]
[1758216360110,1.94863123,117680.0,117670.0,0.0011]
[1758216360614,1.15671123,117680.0,117670.0,0.0011]
[1758216360818,1.94863123,117680.0,117670.0,0.0011]
[1758216361111,1.15671123,117680.0,117670.0,0.0011]
[1758216361310,1.94863123,117680.0,117670.0,0.0011]
[1758216362114,1.10610694,117680.0,117670.0,0.0011]
[1758216362312,1.15671123,117680.0,117670.0,0.0011]
[1758216362513,1.94863123,117680.0,117670.0,0.0011]
[1758216363408,1.15671123,117680.0,117670.0,0.0011]
[1758216363710,1.94859123,117680.0,117670.0,0.0011]
[1758216366615,1.10606694,117680.0,117670.0,0.0011]
[1758216366814,1.6677098,117680.0,117670.0,0.0011]
[1758216367719,0.8758698,117680.0,117670.0,0.0011]
[1758216367911,1.94855123,117680.0,117670.0,0.0011]
[1758216372620,1.15671123,117680.0,117670.0,0.0011]
[1758216372818,1.94851123,117680.0,117670.0,0.0011]
[1758216374322,1.94847123,117680.0,117670.0,0.0011]
[1758216375717,1.15671123,117680.0,117670.0,0.0011]
[1758216375919,3.73915123,117680.0,117670.0,0.0011]
[1758216377721,3.51961393,117680.0,117670.0,0.0011]
[1758216378324,3.51961393,117680.0,117660.0,0.0001]
[1758216378624,0.03611,117640.0,117630.0,0.02201]
[1758216378825,1.4108898,117640.0,117630.0,0.02201]
[1758216379623,0.6192098,117640.0,117630.0,0.03538]
[1758216379923,1.4108898,117640.0,117630.0,0.03538]
[1758216380522,0.84920694,117640.0,117630.0,0.03538]
[1758216380724,1.4108898,117640.0,117630.0,0.03538]
[1758216380927,1.13004837,117640.0,117630.0,0.03538]
[1758216381224,1.13004837,117640.0,117630.0,0.02201]
[1758216381523,1.4108898,117640.0,117630.0,0.02201]
[1758216383226,1.41924575,117640.0,117630.0,0.02201]
[1758216384322,1.4108898,117640.0,117630.0,0.02201]
[1758216384823,0.6192098,117640.0,117630.0,0.02201]
[1758216385124,1.4108498,117640.0,117630.0,0.02201]
[1758216385823,0.6192098,117640.0,117630.0,0.02201]
[1758216386122,1.4108098,117640.0,117630.0,0.02201]
[1758216386523,1.12996837,117640.0,117630.0,0.02201]
[1758216386922,1.4108098,117640.0,117630.0,0.02201]
[1758216387124,1.4108098,117640.0,117630.0,0.03538]
[1758216388428,0.6192098,117640.0,117630.0,0.03538]
[1758216388630,1.4128098,117640.0,117630.0,0.03638]
[1758216389024,1.4148098,117640.0,117630.0,0.03638]
[1758216389530,0.6232098,117640.0,117630.0,0.03638]
[1758216389728,1.4148098,117640.0,117630.0,0.03638]
[1758216389929,1.13396837,117640.0,117630.0,0.03638]
[1758216390226,1.13396837,117640.0,117630.0,0.03538]
[1758216390432,1.13396837,117640.0,117630.0,0.02301]
[1758216390927,1.4148098,117640.0,117630.0,0.02301]
[1758216394338,0.6232098,117640.0,117630.0,0.02301]
[1758216394532,1.4147298,117640.0,117630.0,0.02301]
[1758216394727,0.6232098,117640.0,117630.0,0.02301]
[1758216394933,1.4147298,117640.0,117630.0,0.02301]
[1758216395640,0.6232098,117640.0,117630.0,0.02301]
[1758216395940,1.4146898,117640.0,117630.0,0.02301]
[1758216396730,1.94553123,117640.0,117630.0,0.001]
[1758216399332,1.69553123,117640.0,117630.0,0.001]
[1758216399836,2.11731605,117640.0,117630.0,0.001]
[1758216400537,1.32583605,117640.0,117630.0,0.001]
[1758216400842,2.11727605,117640.0,117630.0,0.001]
[1758216401143,1.32583605,117640.0,117630.0,0.001]
[1758216401332,1.3268814,117640.0,117630.0,0.001]
[1758216401538,2.1183214,117640.0,117630.0,0.001]
[1758216401742,2.1487841,117640.0,117630.0,0.001]
[1758216402139,2.1183214,117640.0,117630.0,0.001]
[1758216402343,1.3573441,117640.0,117630.0,0.001]
[1758216402735,2.1487441,117640.0,117630.0,0.001]
[1758216404839,1.3573441,117640.0,117630.0,0.001]
[1758216405042,2.1487441,117640.0,117630.0,0.001]
[1758216405546,1.3573441,117640.0,117630.0,0.001]
[1758216405734,2.1487041,117640.0,117630.0,0.001]
[1758216406147,2.1182414,117640.0,117630.0,0.001]
[1758216406346,2.1487041,117640.0,117630.0,0.001]
[1758216408339,1.3573441,117640.0,117630.0,0.001]
[1758216408639,2.1486641,117640.0,117630.0,0.001]
[1758216408949,1.3573441,117640.0,117630.0,0.001]
[1758216409150,2.1486641,117640.0,117630.0,0.001]
[1758216410842,0.03588,117630.0,117620.0,0.0002]
[1758216411141,0.03588,117620.0,117610.0,0.0002]
[1758216411345,0.03588,117610.0,117600.0,0.02343]
[1758216411545,0.05729694,117610.0,117600.0,0.02323]
[1758216412442,0.90086658,117610.0,117600.0,0.02323]
[1758216412643,1.27036176,117610.0,117600.0,0.02323]
[1758216412844,0.83487694,117610.0,117600.0,0.03694]
[1758216413049,1.25666176,117610.0,117600.0,0.03694]
[1758216413250,1.25666176,117610.0,117600.0,0.45872482]
[1758216413547,1.25666176,117610.0,117600.0,0.03794]
[1758216413749,1.25666176,117610.0,117600.0,0.03994]
[1758216414146,1.25666176,117610.0,117600.0,0.45972482]
[1758216414350,1.25966176,117610.0,117600.0,0.45972482]
[1758216414653,1.27210176,117610.0,117600.0,0.03794]
[1758216414839,0.48282176,117610.0,117600.0,0.45972482]
[1758216415151,1.26058176,117610.0,117600.0,0.45972482]
[1758216415850,1.25858176,117610.0,117600.0,0.45872482]
[1758216416053,1.26058176,117610.0,117600.0,0.03794]
[1758216416244,1.26058176,117610.0,117600.0,0.45972482]
[1758216416750,0.83579694,117610.0,117600.0,0.45872482]
[1758216417052,1.25858176,117610.0,117600.0,0.45872482]
[1758216417346,0.83679694,117610.0,117600.0,0.45872482]
[1758216417650,1.25858176,117610.0,117600.0,0.45872482]
[1758216418053,0.46738176,117610.0,117600.0,0.45872482]
[1758216418544,1.25854176,117610.0,117600.0,0.45872482]
[1758216420247,1.25854176,117610.0,117600.0,0.03694]
[1758216420549,1.25854176,117610.0,117600.0,0.45872482]
[1758216420846,1.25850176,117610.0,117600.0,0.03694]
[1758216421045,1.25850176,117610.0,117600.0,0.45872482]
[1758216423150,0.46738176,117610.0,117600.0,0.45872482]
[1758216423444,0.04559694,117610.0,117600.0,1.13050964]
[1758216423652,0.02341694,117610.0,117600.0,1.13050964]
[1758216423953,0.48853694,117610.0,117600.0,1.13050964]
[1758216424655,0.48853694,117610.0,117600.0,1.47050964]
[1758216425352,0.002,117610.0,117600.0,1.89229446]
[1758216425758,0.002,117610.0,117600.0,1.47050964]
[1758216426055,0.002,117610.0,117600.0,1.43050964]
[1758216426251,0.02497367,117610.0,117600.0,1.43050964]
[1758216426455,0.02497367,117610.0,117600.0,0.28694]
[1758216426652,0.04774367,117610.0,117600.0,1.13050964]
[1758216426851,0.02497367,117610.0,117600.0,1.13050964]
[1758216427159,0.002,117610.0,117600.0,1.13050964]
[1758216427657,0.002,117610.0,117600.0,0.28694]
[1758216427851,0.002,117610.0,117600.0,1.13050964]
[1758216429161,0.002,117610.0,117600.0,0.28694]
[1758216429461,0.002,117610.0,117600.0,1.13050964]
[1758216430055,0.47072566,117610.0,117600.0,0.28694]
[1758216430252,0.47072566,117610.0,117600.0,1.13050964]
[1758216430960,0.04894084,117610.0,117600.0,1.13050964]
[1758216431261,0.47072184,117610.0,117600.0,0.28694]
[1758216431556,0.47072184,117610.0,117600.0,1.13050964]
[1758216432360,0.47072184,117610.0,117600.0,0.28694]
[1758216432658,0.47072184,117610.0,117600.0,1.13050964]
[1758216433056,0.04893702,117610.0,117600.0,1.13050964]
[1758216433359,0.02616702,117610.0,117600.0,1.13050964]
[1758216437967,0.002,117610.0,117600.0,1.63229446]
[1758216438368,0.002,117610.0,117600.0,2.42289446]
[1758216438566,0.002,117610.0,117600.0,0.88050964]
[1758216439867,0.02477,117610.0,117600.0,0.88050964]
[1758216440067,0.44655482,117610.0,117600.0,0.88050964]
[1758216440265,0.02477,117610.0,117600.0,0.88050964]
[1758216440565,0.44655482,117610.0,117600.0,0.88050964]
[1758216440769,0.02477,117610.0,117600.0,0.88050964]
[1758216440963,0.002,117610.0,117600.0,0.88050964]
[1758216441368,0.02477,117610.0,117600.0,0.88050964]
[1758216442475,0.44655482,117610.0,117600.0,0.88050964]
[1758216443577,0.02477,117610.0,117600.0,0.88050964]
[1758216443875,0.44655482,117610.0,117600.0,0.88050964]
[1758216445078,0.02477,117610.0,117600.0,0.88050964]
[1758216445575,0.02477,117610.0,117600.0,0.03694]
[1758216445576,0.44655482,117610.0,117600.0,0.03694]
[1758216445769,0.44655482,117610.0,117600.0,0.88050964]
[1758216449676,0.44655482,117610.0,117600.0,0.03694]
[1758216449871,0.73425539,117610.0,117600.0,0.03694]
[1758216450071,1.52449539,117610.0,117600.0,0.03694]
[1758216450370,1.52449539,117610.0,117600.0,0.45872482]
[1758216451279,1.10271057,117610.0,117600.0,0.45872482]
[1758216451477,1.52449539,117610.0,117600.0,0.45872482]
[1758216452878,1.52445539,117610.0,117600.0,0.45872482]
[1758216453080,0.29894057,117610.0,117600.0,0.45872482]
[1758216453268,1.11952539,117610.0,117600.0,0.03694]
[1758216453474,1.11952539,117610.0,117600.0,0.45872482]
[1758216454079,0.72072539,117610.0,117600.0,0.45872482]
[1758216454281,1.51088539,117610.0,117600.0,0.45872482]
[1758216454585,1.08910057,117610.0,117600.0,0.45872482]
[1758216454783,1.51088539,117610.0,117600.0,0.45872482]
[1758216455886,1.52441539,117610.0,117600.0,0.45872482]
[1758216457090,1.27441539,117610.0,117600.0,0.02323]
[1758216457590,1.27441539,117610.0,117600.0,0.44501482]
[1758216457791,1.27441539,117610.0,117600.0,0.02323]
[1758216458491,1.94620021,117610.0,117600.0,0.02323]
[1758216458892,1.52441539,117610.0,117600.0,0.02323]
[1758216459391,1.27441539,117610.0,117600.0,0.02323]
[1758216459894,1.133846,117610.0,117600.0,0.02323]
[1758216460281,1.66506143,117610.0,117600.0,0.02323]
[1758216460485,0.03561,117600.0,117590.0,0.0418768]
[1758216460684,1.41221143,117600.0,117590.0,0.1116768]
[1758216461589,1.41221143,117600.0,117590.0,0.0416768]
[1758216461993,0.62221143,117600.0,117590.0,0.0416768]
[1758216462192,1.41221143,117600.0,117590.0,0.0416768]
[1758216462881,1.41221143,117600.0,117590.0,0.0426768]
[1758216463787,1.41217143,117600.0,117590.0,0.0416768]
[1758216463993,1.41617143,117600.0,117590.0,0.0426768]
[1758216464483,0.62621143,117600.0,117590.0,0.0426768]
[1758216464683,1.41613143,117600.0,117590.0,0.0426768]
[1758216464995,1.41413143,117600.0,117590.0,0.0426768]
[1758216465297,1.133916,117600.0,117590.0,0.0560468]
[1758216465496,1.133916,117600.0,117590.0,0.0426768]
[1758216465794,1.118346,117600.0,117590.0,0.33626223]
[1758216465995,1.119346,117600.0,117590.0,0.33626223]
[1758216466389,0.329466,117600.0,117590.0,0.33626223]
[1758216466589,1.119346,117600.0,117590.0,0.33626223]
[1758216466795,0.329466,117600.0,117590.0,0.33626223]
[1758216466988,1.119346,117600.0,117590.0,0.33626223]
[1758216467696,0.329466,117600.0,117590.0,0.0550468]
[1758216467895,1.119346,117600.0,117590.0,0.0550468]
[1758216468993,1.119346,117600.0,117590.0,0.33626223]
[1758216469198,0.83813057,117600.0,117590.0,0.0550468]
[1758216469398,1.119346,117600.0,117590.0,0.33626223]
[1758216470000,1.119346,117600.0,117590.0,0.0550468]
[1758216470197,1.119346,117600.0,117590.0,0.33626223]
[1758216471400,0.83813057,117600.0,117590.0,0.0550468]
[1758216471601,1.119346,117600.0,117590.0,0.0550468]
[1758216472201,0.329466,117600.0,117590.0,0.0550468]
[1758216472500,1.119226,117600.0,117590.0,0.0550468]
[1758216472796,1.09505543,117600.0,117590.0,0.0550468]
[1758216474103,0.30529543,117600.0,117590.0,0.0550468]
[1758216474298,0.32948162,117600.0,117590.0,0.0550468]
[1758216474499,0.04826619,117600.0,117590.0,0.0550468]
[1758216474699,0.32948162,117600.0,117590.0,0.0550468]
[1758216475001,1.04284162,117600.0,117590.0,0.33626223]
[1758216475398,1.04284162,117600.0,117590.0,0.0550468]
[1758216475600,1.04284162,117600.0,117590.0,0.33626223]
[1758216476103,1.11912162,117600.0,117590.0,0.33626223]
[1758216476509,0.02171,117590.0,117580.0,0.04398833]
[1758216476709,0.02171,117590.0,117580.0,0.50378833]
[1758216477001,0.02171,117590.0,117580.0,0.78500376]
[1758216477204,0.30292543,117590.0,117580.0,0.78500376]
[1758216477404,0.30292543,117590.0,117580.0,0.50378833]
[1758216477405,0.02171,117590.0,117580.0,0.50378833]
[1758216477704,0.02171,117590.0,117580.0,0.78500376]
[1758216477705,0.30292543,117590.0,117580.0,0.78500376]
[1758216477907,0.02171,117590.0,117580.0,0.78500376]
[1758216479205,0.30292543,117590.0,117580.0,0.78600376]
[1758216479406,0.02171,117590.0,117580.0,0.78600376]
[1758216480105,0.02271,117590.0,117580.0,0.78500376]
[1758216480801,0.02171,117590.0,117580.0,0.78500376]
[1758216480998,0.02171,117590.0,117580.0,0.78600376]
[1758216481600,0.30292543,117590.0,117580.0,0.78600376]
[1758216481903,0.02171,117590.0,117580.0,0.78600376]
[1758216482808,0.02171,117590.0,117580.0,1.06721919]
[1758216483307,0.02171,117590.0,117580.0,0.78600376]
[1758216491006,0.02171,117590.0,117580.0,1.06721919]
[1758216493709,0.02171,117590.0,117580.0,0.50478833]
[1758216493913,0.02171,117590.0,117580.0,0.78600376]
[1758216496307,0.02171,117590.0,117580.0,1.06721919]
[1758216496708,0.02171,117590.0,117580.0,0.50478833]
[1758216497013,0.02171,117590.0,117580.0,1.06721919]
[1758216499006,0.02288,117600.0,117590.0,0.03496]
[1758216499206,0.02278,117600.0,117590.0,0.31617543]
[1758216499409,0.04721692,117600.0,117590.0,0.31617543]
[1758216499609,0.32843235,117600.0,117590.0,0.31617543]
[1758216499904,0.32843235,117600.0,117590.0,0.03496]
[1758216500112,0.32943235,117600.0,117590.0,0.03496]
[1758216500413,0.32943235,117600.0,117590.0,0.31617543]
[1758216500916,0.33043235,117600.0,117590.0,0.31617543]
[1758216502311,0.04921692,117600.0,117590.0,0.31617543]
[1758216502610,0.33043235,117600.0,117590.0,0.31617543]
[1758216505418,0.04921692,117600.0,117590.0,0.31617543]
[1758216506817,0.04921692,117600.0,117590.0,0.03496]
[1758216507020,0.04921692,117600.0,117590.0,0.31617543]
[1758216508118,0.04921692,117600.0,117590.0,0.03496]
[1758216508310,0.04921692,117600.0,117590.0,0.31617543]
[1758216509708,0.04921692,117600.0,117590.0,0.03496]
[1758216509911,0.04921692,117600.0,117590.0,0.31617543]
[1758216510922,0.33043235,117600.0,117590.0,0.03496]
[1758216511317,0.33043235,117600.0,117590.0,0.31617543]
[1758216514918,0.33043235,117600.0,117590.0,0.03496]
[1758216515223,0.33043235,117600.0,117590.0,0.31617543]